bitfinex/quotes_BTCUSD_20251007
["timestamp","ask_amount","ask_price","bid_price","bid_amount"]
[1759822076420,0.23584762,123810.0,123800.0,0.24789744]
[1759822077181,0.23584762,123810.0,123800.0,0.40944832]
[1759822080157,0.23584762,123810.0,123800.0,0.00512594]
[1759822080361,0.24110762,123810.0,123800.0,0.23146594]
[1759822080575,0.74467286,123810.0,123800.0,0.00314594]
[1759822080779,0.24110762,123810.0,123800.0,0.00314594]
[1759822082790,0.24110762,123810.0,123800.0,0.00530594]
[1759822082999,0.23795762,123810.0,123800.0,0.16685682]
[1759822083638,0.23795762,123810.0,123800.0,0.00530594]
[1759822084284,0.23584762,123810.0,123800.0,0.00530594]
[1759822084644,0.23584762,123810.0,123800.0,0.16685682]
[1759822085827,0.2526599,123810.0,123800.0,0.16685682]
[1759822086017,0.2526599,123810.0,123800.0,0.16992682]
[1759822086475,0.2526599,123810.0,123800.0,0.39824682]
[1759822087184,0.008,123810.0,123800.0,0.45534711]
[1759822088451,0.008,123810.0,123800.0,0.22702711]
[1759822088683,0.16953784,123810.0,123800.0,0.45534711]
[1759822089523,0.008,123810.0,123800.0,0.45534711]
[1759822090094,0.16953784,123810.0,123800.0,0.45534711]
[1759822090446,0.16953784,123810.0,123800.0,0.39824682]
[1759822090890,0.008,123810.0,123800.0,0.39824682]
[1759822091315,0.008,123810.0,123800.0,0.42248915]
[1759822092366,0.004,123810.0,123800.0,0.42048915]
[1759822092825,0.16964317,123830.0,123820.0,0.16152479]
[1759822093027,0.25276523,123830.0,123820.0,0.16368479]
[1759822093232,0.25276523,123830.0,123820.0,0.00523]
[1759822093432,0.25276523,123830.0,123820.0,0.23351]
[1759822093762,0.25276523,123830.0,123820.0,0.39503479]
[1759822094479,0.26827774,123830.0,123820.0,0.23244]
[1759822094687,0.26931774,123830.0,123820.0,0.23344]
[1759822095403,0.27127774,123830.0,123820.0,0.23344]
[1759822095615,0.26931774,123830.0,123820.0,0.23344]
[1759822096768,0.26931774,123830.0,123820.0,0.39803479]
[1759822097378,0.26931597,123830.0,123820.0,0.39803479]
[1759822097587,0.26176523,123830.0,123820.0,0.39803479]
[1759822098201,0.26931557,123830.0,123820.0,0.39803479]
[1759822098406,0.26931557,123830.0,123820.0,0.46238689]
[1759822098582,0.26216523,123830.0,123820.0,0.46238689]
[1759822101453,0.09252206,123830.0,123820.0,0.46238689]
[1759822101657,0.0094,123830.0,123820.0,0.46238689]
[1759822102683,0.0094,123830.0,123820.0,0.23410689]
[1759822103102,0.0094,123830.0,123820.0,0.54323689]
[1759822103383,0.0094,123830.0,123820.0,0.54630689]
[1759822104531,0.0094,123830.0,123820.0,0.48195479]
[1759822104903,0.0094,123830.0,123820.0,0.50619113]
[1759822105142,0.0094,123830.0,123820.0,0.42223113]
[1759822105346,0.0094,123830.0,123820.0,0.50619113]
[1759822112871,0.0094,123830.0,123820.0,0.50419113]
[1759822112872,0.0034,123830.0,123820.0,0.50419113]
[1759822113101,0.0034,123830.0,123820.0,0.65640059]
[1759822113446,0.0024,123830.0,123820.0,0.66040059]
[1759822113627,0.0004,123830.0,123820.0,1.02555249]
[1759822113871,0.0014,123830.0,123820.0,1.05170913]
[1759822114323,0.0004,123830.0,123820.0,1.05070913]
[1759822114543,0.0004,123830.0,123820.0,1.05270913]
[1759822114544,0.0014,123830.0,123820.0,1.05270913]
[1759822114920,0.0034,123830.0,123820.0,1.05970913]
[1759822116025,0.0034,123830.0,123820.0,1.05962913]
[1759822119233,0.0034,123830.0,123820.0,1.08962913]
[1759822120597,0.0034,123830.0,123820.0,1.08958913]
[1759822120807,0.0034,123830.0,123820.0,0.77750913]
[1759822120977,0.0034,123830.0,123820.0,1.08958913]
[1759822121394,0.0034,123830.0,123820.0,1.00566913]
[1759822121584,0.0034,123830.0,123820.0,1.08958913]
[1759822125189,0.0034,123830.0,123820.0,0.98051249]
[1759822125385,0.0034,123830.0,123820.0,1.08958913]
[1759822127802,0.0034,123830.0,123820.0,1.08954913]
[1759822133216,0.0034,123830.0,123820.0,0.77750913]
[1759822133398,0.0034,123830.0,123820.0,1.08954913]
[1759822138018,0.0034,123830.0,123820.0,1.06439249]
[1759822141544,0.0034,123830.0,123820.0,1.11454913]
[1759822142360,0.0034,123830.0,123820.0,1.21456603]
[1759822146818,0.0034,123830.0,123820.0,0.90252603]
[1759822147031,0.0034,123830.0,123820.0,1.55024603]
[1759822149863,0.00258,123830.0,123820.0,1.55024603]
[1759822151463,0.00258,123830.0,123820.0,1.52508939]
[1759822155836,0.00258,123830.0,123820.0,0.87736939]
[1759822156053,0.00758,123830.0,123820.0,0.84713939]
[1759822156263,0.00758,123830.0,123820.0,1.15913939]
[1759822156464,0.00258,123830.0,123820.0,1.16441939]
[1759822159202,0.00258,123830.0,123820.0,1.16127939]
[1759822159422,0.00258,123830.0,123820.0,1.16441939]
[1759822159584,0.00258,123830.0,123820.0,1.18957603]
[1759822165677,0.00258,123830.0,123820.0,1.21457603]
[1759822169082,0.00462,123830.0,123820.0,1.21143603]
[1759822169283,0.00258,123830.0,123820.0,1.21143603]
[1759822169430,0.00258,123830.0,123820.0,1.21457603]
[1759822169837,0.00258,123830.0,123820.0,1.18957603]
[1759822170074,0.00258,123830.0,123820.0,1.21457603]
[1759822170523,0.00258,123830.0,123820.0,0.98649603]
[1759822170672,0.00462,123830.0,123820.0,1.20925603]
[1759822170877,0.00258,123830.0,123820.0,1.21453603]
[1759822172784,0.00258,123830.0,123820.0,0.84927939]
[1759822172989,0.0047,123830.0,123820.0,1.15909939]
[1759822173203,0.0047,123830.0,123820.0,1.16119939]
[1759822173539,0.00258,123830.0,123820.0,1.16438939]
[1759822175898,0.00767,123830.0,123820.0,1.07513939]
[1759822176099,0.00767,123830.0,123820.0,1.15905939]
[1759822176359,0.00258,123830.0,123820.0,1.16120939]
[1759822176498,0.00258,123830.0,123820.0,1.16435939]
[1759822179459,0.00258,123830.0,123820.0,1.16120939]
[1759822179699,0.00258,123830.0,123820.0,1.16435939]
[1759822180933,0.00258,123830.0,123820.0,1.16120939]
[1759822181134,0.00258,123830.0,123820.0,1.16435939]
[1759822196740,0.0004,123860.0,123850.0,0.16148566]
[1759822196952,0.0004,123860.0,123850.0,0.5110041]
[1759822197292,0.00099979,123860.0,123850.0,0.5110041]
[1759822197498,0.00099979,123860.0,123850.0,0.53523282]
[1759822197903,0.00899979,123860.0,123850.0,0.54883904]
[1759822198526,0.00599979,123860.0,123850.0,0.54783904]
[1759822198724,0.00699979,123860.0,123850.0,0.54983904]
[1759822199129,0.00199979,123860.0,123850.0,0.54783904]
[1759822199520,0.00399979,123860.0,123850.0,0.55083904]
[1759822199931,0.00399979,123860.0,123850.0,0.61057266]
[1759822200367,0.00615979,123860.0,123850.0,0.23576904]
[1759822200565,0.00912979,123860.0,123850.0,0.2013206]
[1759822200785,0.00912979,123860.0,123850.0,0.4292806]
[1759822201406,0.00912979,123860.0,123850.0,0.2013206]
[1759822201629,0.00912979,123860.0,123850.0,0.40505188]
[1759822201868,0.00912979,123860.0,123850.0,0.17709188]
[1759822202113,0.00912979,123860.0,123850.0,0.40505188]
[1759822204000,0.00399979,123860.0,123850.0,0.40713188]
[1759822204458,0.00399979,123860.0,123850.0,0.47512216]
[1759822204667,0.00399979,123860.0,123850.0,0.47824216]
[1759822206243,0.00399979,123860.0,123850.0,0.47512216]
[1759822211517,0.00399979,123860.0,123850.0,0.47824216]
[1759822215824,0.00602979,123860.0,123850.0,0.47512216]
[1759822216226,0.00602979,123860.0,123850.0,0.49101188]
[1759822216454,0.00399979,123860.0,123850.0,0.49101188]
[1759822217844,0.00399979,123860.0,123850.0,0.49413188]
[1759822220138,0.00399979,123860.0,123850.0,0.49101188]
[1759822220798,0.00602979,123860.0,123850.0,0.17917188]
[1759822221058,0.00908979,123860.0,123850.0,0.48893188]
[1759822221370,0.00908979,123860.0,123850.0,0.17709188]
[1759822221589,0.00908979,123860.0,123850.0,0.40501188]
[1759822222069,0.00602979,123860.0,123850.0,0.40501188]
[1759822222974,0.00908979,123860.0,123850.0,0.40501188]
[1759822226799,0.00908979,123860.0,123850.0,0.17709188]
[1759822227009,0.00908979,123860.0,123850.0,0.40501188]
[1759822231156,0.67375815,123860.0,123850.0,0.01560622]
[1759822231454,0.67375815,123860.0,123850.0,0.3947684]
[1759822231455,1.26007594,123860.0,123850.0,0.3947684]
[1759822231750,0.75688021,123860.0,123850.0,0.3947684]
[1759822231974,0.75588021,123860.0,123850.0,0.3927684]
[1759822232355,0.75688021,123860.0,123850.0,0.3907684]
[1759822232763,0.76488021,123860.0,123850.0,0.3927684]
[1759822233111,1.26807594,123860.0,123850.0,0.00336274]
[1759822233310,1.34807274,123860.0,123850.0,0.00336274]
[1759822233447,1.29231169,123860.0,123850.0,0.00336274]
[1759822233915,0.28592023,123860.0,123850.0,0.00336274]
[1759822234123,1.29231169,123860.0,123850.0,0.00336274]
[1759822234514,0.78911596,123860.0,123850.0,0.00336274]
[1759822235057,0.28592023,123860.0,123850.0,0.00336274]
[1759822235267,0.78911596,123860.0,123850.0,0.00336274]
[1759822235883,1.71230849,123860.0,123850.0,0.00336274]
[1759822236197,1.63231169,123860.0,123850.0,0.00336274]
[1759822236757,1.63986754,123860.0,123850.0,0.00336274]
[1759822238055,0.86139608,123860.0,123850.0,0.00336274]
[1759822238235,1.86778754,123860.0,123850.0,0.00336274]
[1759822238432,1.86023169,123860.0,123850.0,0.00336274]
[1759822240139,0.85384023,123860.0,123850.0,0.00336274]
[1759822240321,1.86023169,123860.0,123850.0,0.00336274]
[1759822250909,1.83599594,123860.0,123850.0,0.00336274]
[1759822251315,1.86023296,123860.0,123850.0,0.00336274]
[1759822253433,0.8538415,123860.0,123850.0,0.00336274]
[1759822253842,1.86023296,123860.0,123850.0,0.00336274]
[1759822255111,1.35723792,123860.0,123850.0,0.00336274]
[1759822256352,0.86139034,123860.0,123850.0,0.00336274]
[1759822256494,1.36478676,123860.0,123850.0,0.00336274]
[1759822256693,1.13686676,123860.0,123850.0,0.00336274]
[1759822257126,0.86139034,123860.0,123850.0,0.00336274]
[1759822257346,1.36478676,123860.0,123850.0,0.00336274]
[1759822260930,1.44478356,123860.0,123850.0,0.00336274]
[1759822262610,1.36478676,123860.0,123850.0,0.00336274]
[1759822265561,0.86139034,123860.0,123850.0,0.00336274]
[1759822265792,1.36478676,123860.0,123850.0,0.00336274]
[1759822266404,0.86139034,123860.0,123850.0,0.00336274]
[1759822266611,1.36478676,123860.0,123850.0,0.00336274]
[1759822266817,1.44478356,123860.0,123850.0,0.00336274]
[1759822267136,1.21686356,123860.0,123850.0,0.00336274]
[1759822267339,1.44866676,123860.0,123850.0,0.00336274]
[1759822268291,1.13686676,123860.0,123850.0,0.00336274]
[1759822268505,1.44866676,123860.0,123850.0,0.00336274]
[1759822269761,0.94527034,123860.0,123850.0,0.00336274]
[1759822269971,1.44866676,123860.0,123850.0,0.00336274]
[1759822271451,1.36474676,123860.0,123850.0,0.00336274]
[1759822271802,1.36475139,123860.0,123850.0,0.00336274]
[1759822273014,1.44474819,123860.0,123850.0,0.00336274]
[1759822273917,1.36475139,123860.0,123850.0,0.00336274]
[1759822279106,1.89829971,123860.0,123850.0,0.00336274]
[1759822279307,1.91340481,123860.0,123850.0,0.00336274]
[1759822279538,2.35720481,123860.0,123850.0,0.00336274]
[1759822279946,2.35420481,123860.0,123850.0,0.00236274]
[1759822280276,2.45220161,123860.0,123850.0,0.00236274]
[1759822281085,2.44420161,123860.0,123850.0,0.00036274]
[1759822281300,0.50151174,123830.0,123820.0,0.13055615]
[1759822281496,0.82006212,123830.0,123820.0,0.13070209]
[1759822281784,1.32840854,123830.0,123820.0,0.13070209]
[1759822281932,1.40448114,123830.0,123820.0,0.13070209]
[1759822282590,1.40748114,123830.0,123820.0,0.13270209]
[1759822283320,1.40948114,123830.0,123820.0,0.13270209]
[1759822286738,1.18160114,123830.0,123820.0,0.13270209]
[1759822287011,1.40948114,123830.0,123820.0,0.13270209]
[1759822288027,1.40952114,123830.0,123820.0,0.13270209]
[1759822290061,1.35769234,123830.0,123820.0,0.13270209]
[1759822290464,1.12977234,123830.0,123820.0,0.13270209]
[1759822290641,1.35769234,123830.0,123820.0,0.13270209]
[1759822292844,1.12977234,123830.0,123820.0,0.13270209]
[1759822292982,1.35769234,123830.0,123820.0,0.13270209]
[1759822293382,1.43768914,123830.0,123820.0,0.13270209]
[1759822294024,1.52164914,123830.0,123820.0,0.13270209]
[1759822294197,1.52124737,123830.0,123820.0,0.13270209]
[1759822295822,1.53631624,123830.0,123820.0,0.13270209]
[1759822296633,1.22443624,123830.0,123820.0,0.13270209]
[1759822296827,1.53631624,123830.0,123820.0,0.13270209]
[1759822297269,1.22442261,123830.0,123820.0,0.13270209]
[1759822297621,1.14442581,123830.0,123820.0,0.13270209]
[1759822297819,1.45630581,123830.0,123820.0,0.13270209]
[1759822298340,1.14442581,123830.0,123820.0,0.13270209]
[1759822298540,1.45630581,123830.0,123820.0,0.13270209]
[1759822304055,1.45630581,123830.0,123820.0,0.03268519]
[1759822304263,1.53630261,123830.0,123820.0,0.03268519]
[1759822306290,1.22442261,123830.0,123820.0,0.03268519]
[1759822306609,1.14442581,123830.0,123820.0,0.03268519]
[1759822306820,1.45630581,123830.0,123820.0,0.03268519]
[1759822308568,1.14442581,123830.0,123820.0,0.03268519]
[1759822308745,1.45630581,123830.0,123820.0,0.03268519]
[1759822311080,1.14442581,123830.0,123820.0,0.03268519]
[1759822311268,0.86399939,123830.0,123820.0,0.03796519]
[1759822311469,0.52399939,123830.0,123820.0,0.05791532]
[1759822311689,0.49975559,123830.0,123820.0,0.21944011]
[1759822311849,0.48468672,123830.0,123820.0,0.21944011]
[1759822312659,0.25676672,123830.0,123820.0,0.21944011]
[1759822312923,0.48468672,123830.0,123820.0,0.21944011]
[1759822313071,0.25676672,123830.0,123820.0,0.03796519]
[1759822313272,0.48464672,123830.0,123820.0,0.19948998]
[1759822316855,0.25676672,123830.0,123820.0,0.19948998]
[1759822317077,0.48464672,123830.0,123820.0,0.19948998]
[1759822317295,0.75269712,123830.0,123820.0,0.19948998]
[1759822317690,0.98057712,123830.0,123820.0,0.19948998]
[1759822318109,0.75269712,123830.0,123820.0,0.19948998]
[1759822318356,0.98057712,123830.0,123820.0,0.19948998]
[1759822319202,0.75269712,123830.0,123820.0,0.19948998]
[1759822319591,0.98057712,123830.0,123820.0,0.19948998]
[1759822319811,0.75269712,123830.0,123820.0,0.19948998]
[1759822320269,0.98057712,123830.0,123820.0,0.19948998]
[1759822320733,0.98057712,123830.0,123820.0,0.19628998]
[1759822320973,0.98583712,123830.0,123820.0,0.03268519]
[1759822321203,0.75795712,123830.0,123820.0,0.03268519]
[1759822321454,0.98583712,123830.0,123820.0,0.03268519]
[1759822321859,0.75795712,123830.0,123820.0,0.03268519]
[1759822322269,0.98583712,123830.0,123820.0,0.03268519]
[1759822322515,1.90929901,123830.0,123820.0,0.03268519]
[1759822322738,1.85354652,123830.0,123820.0,0.03268519]
[1759822322968,2.39471049,123830.0,123820.0,0.03268519]
[1759822323655,2.40271049,123830.0,123820.0,0.03268519]
[1759822323887,2.41780219,123830.0,123820.0,0.03268519]
[1759822324085,2.49779899,123830.0,123820.0,0.03268519]
[1759822324340,2.49579899,123830.0,123820.0,0.03268519]
[1759822324564,2.50979899,123830.0,123820.0,0.03268519]
[1759822324995,2.49279899,123830.0,123820.0,0.03068519]
[1759822325238,2.51601361,123830.0,123820.0,0.03468519]
[1759822325464,2.49701361,123830.0,123820.0,0.03068519]
[1759822325677,2.51501361,123830.0,123820.0,0.03068519]
[1759822325889,2.55001361,123830.0,123820.0,0.03468519]
[1759822326587,2.55001361,123830.0,123820.0,1e-08]
[1759822326773,2.67501361,123830.0,123820.0,1e-08]
[1759822327254,2.67499833,123830.0,123820.0,1e-08]
[1759822328537,0.36157436,123830.0,123820.0,1e-08]
[1759822328752,1.36850454,123830.0,123820.0,1e-08]
[1759822328931,2.02034454,123830.0,123820.0,1e-08]
[1759822329171,2.05049644,123830.0,123820.0,1e-08]
[1759822329590,1.96653644,123830.0,123820.0,1e-08]
[1759822329793,2.05049644,123830.0,123820.0,1e-08]
[1759822330206,0.70157436,123830.0,123820.0,1e-08]
[1759822330418,1.51266483,123830.0,123820.0,1e-08]
[1759822330664,1.57757936,123830.0,123820.0,1e-08]
[1759822330872,1.56957936,123830.0,123820.0,1e-08]
[1759822331935,1.56957324,123830.0,123820.0,1e-08]
[1759822333448,1.48957644,123830.0,123820.0,1e-08]
[1759822335879,1.99304153,123830.0,123820.0,1e-08]
[1759822336092,1.90912153,123830.0,123820.0,1e-08]
[1759822340342,1.93927343,123830.0,123820.0,1e-08]
[1759822342125,0.66901135,123830.0,123820.0,0.00200001]
[1759822342325,0.66147634,123830.0,123820.0,0.00497001]
[1759822342755,1.39286143,123830.0,123820.0,0.00497001]
[1759822343559,1.39286143,123830.0,123820.0,0.00200001]
[1759822343748,0.88939634,123830.0,123820.0,0.00200001]
[1759822346435,0.88939634,123830.0,123820.0,1e-08]
[1759822347046,0.89146634,123830.0,123820.0,1e-08]
[1759822347260,0.88939634,123830.0,123820.0,0.00200001]
[1759822347444,0.88939634,123830.0,123820.0,0.00497001]
[1759822347619,0.66147634,123830.0,123820.0,0.00497001]
[1759822347870,0.66147634,123830.0,123820.0,0.00200001]
[1759822348070,0.88935634,123830.0,123820.0,0.00497001]
[1759822348449,0.88935634,123830.0,123820.0,0.00200001]
[1759822348675,0.88935634,123830.0,123820.0,1e-08]
[1759822348676,0.97142314,123830.0,123820.0,1e-08]
[1759822349080,0.89142634,123830.0,123820.0,1e-08]
[1759822349769,0.89467634,123830.0,123820.0,1e-08]
[1759822350670,0.89142634,123830.0,123820.0,0.00200001]
[1759822351082,0.89142634,123830.0,123820.0,1e-08]
[1759822351285,0.89443634,123830.0,123820.0,1e-08]
[1759822351686,1.47789823,123830.0,123820.0,1e-08]
[1759822352178,0.97443314,123830.0,123820.0,1e-08]
[1759822352593,0.89443634,123830.0,123820.0,1e-08]
[1759822353489,0.89142634,123830.0,123820.0,0.00204001]
[1759822354542,0.89443634,123830.0,123820.0,1e-08]
[1759822357324,1.39790143,123830.0,123820.0,1e-08]
[1759822357531,0.89443634,123830.0,123820.0,1e-08]
[1759822358311,0.97443314,123830.0,123820.0,1e-08]
[1759822363330,1.47789823,123830.0,123820.0,1e-08]
[1759822363689,0.97443314,123830.0,123820.0,1e-08]
[1759822364119,0.89443634,123830.0,123820.0,1e-08]
[1759822364997,0.89142634,123830.0,123820.0,0.00196001]
[1759822365389,0.89897692,123830.0,123820.0,0.00196001]
[1759822365846,0.90201692,123830.0,123820.0,1e-08]
[1759822366353,0.67413692,123830.0,123820.0,1e-08]
[1759822366518,0.89446634,123830.0,123820.0,1e-08]
[1759822368236,0.66658634,123830.0,123820.0,1e-08]
[1759822368442,0.66354634,123830.0,123820.0,0.00196001]
[1759822368641,0.66354634,123830.0,123820.0,0.1666848]
[1759822368642,0.5255138,123830.0,123820.0,0.1666848]
[1759822369208,0.5075138,123830.0,123820.0,0.1666848]
[1759822369648,0.4725138,123830.0,123820.0,0.16668479]
[1759822369912,0.4765138,123830.0,123820.0,0.16868479]
[1759822370088,0.4785138,123830.0,123820.0,0.16968479]
[1759822380634,0.4835438,123830.0,123820.0,0.003]
[1759822381265,0.54806922,123830.0,123820.0,0.16452479]
[1759822381890,0.4835438,123830.0,123820.0,0.003]
[1759822382105,0.4835438,123830.0,123820.0,0.16452479]
[1759822382342,0.4835438,123830.0,123820.0,0.003]
[1759822388456,1.3269234,123830.0,123820.0,0.003]
[1759822388697,1.33447652,123830.0,123820.0,0.003]
[1759822388919,1.41447332,123830.0,123820.0,0.003]
[1759822395058,1.18659332,123830.0,123820.0,0.003]
[1759822395306,1.33443652,123830.0,123820.0,0.003]
[1759822395746,1.10659652,123830.0,123820.0,0.003]
[1759822395967,0.8184738,123830.0,123820.0,0.16981479]
[1759822396158,0.2506338,123830.0,123820.0,0.16981479]
[1759822396373,0.4785538,123830.0,123820.0,0.1804974]
[1759822397613,0.2506338,123830.0,123820.0,0.1804974]
[1759822397822,0.2506338,123830.0,123820.0,0.16981479]
[1759822398027,0.08912206,123830.0,123820.0,0.16981479]
[1759822398243,0.006,123830.0,123820.0,0.16981479]
[1759822401401,0.16751174,123830.0,123820.0,0.16981479]
[1759822401585,0.006,123830.0,123820.0,0.16981479]
[1759822402847,0.16751174,123830.0,123820.0,0.16981479]
[1759822403054,0.2527038,123830.0,123820.0,0.16669479]
[1759822403268,0.2558838,123830.0,123820.0,0.16452479]
[1759822404331,0.2558838,123830.0,123820.0,0.16669479]
[1759822404552,0.2558838,123830.0,123820.0,0.16452479]
[1759822404769,0.2558838,123830.0,123820.0,0.003]
[1759822407383,0.4837638,123830.0,123820.0,0.003]
[1759822407832,0.9871434,123830.0,123820.0,0.003]
[1759822408063,0.5637606,123830.0,123820.0,0.003]
[1759822413075,0.4837638,123830.0,123820.0,0.003]
[1759822415909,0.8237638,123830.0,123820.0,0.003]
[1759822420748,1.3271434,123830.0,123820.0,0.003]
[1759822420948,1.33468958,123830.0,123820.0,0.003]
[1759822422573,1.33468974,123830.0,123820.0,0.003]
[1759822422782,1.41468654,123830.0,123820.0,0.003]
[1759822425246,1.41468666,123830.0,123820.0,0.003]
[1759822426841,1.18680666,123830.0,123820.0,0.003]
[1759822427052,1.41468666,123830.0,123820.0,0.003]
[1759822428924,1.18680666,123830.0,123820.0,0.003]
[1759822429155,1.41468666,123830.0,123820.0,0.003]
[1759822431408,1.18680666,123830.0,123820.0,0.003]
[1759822431588,1.33468986,123830.0,123820.0,0.003]
[1759822431788,1.35893597,123830.0,123820.0,0.003]
[1759822433506,0.62449637,123830.0,123820.0,0.00507]
[1759822433699,0.85233637,123830.0,123820.0,0.00507]
[1759822434118,0.85547637,123830.0,123820.0,0.003]
[1759822436138,1.35885597,123830.0,123820.0,0.003]
[1759822436544,0.85547637,123830.0,123820.0,0.003]
[1759822436931,1.35885597,123830.0,123820.0,0.003]
[1759822438118,0.62763637,123830.0,123820.0,0.003]
[1759822438322,0.62763637,123830.0,123820.0,0.00507]
[1759822438522,0.85030637,123830.0,123820.0,0.00507]
[1759822438729,0.85239637,123830.0,123820.0,0.00507]
[1759822439081,0.62765637,123830.0,123820.0,0.003]
[1759822439579,0.85553637,123830.0,123820.0,0.003]
[1759822440332,0.93553317,123830.0,123820.0,0.003]
[1759822440749,0.85553637,123830.0,123820.0,0.003]
[1759822441200,1.35906042,123830.0,123820.0,0.003]
[1759822441405,0.85553637,123830.0,123820.0,0.003]
[1759822441553,1.35906042,123830.0,123820.0,0.003]
[1759822446429,0.85553637,123830.0,123820.0,0.003]
[1759822446646,1.35906042,123830.0,123820.0,0.003]
[1759822451244,1.43905722,123830.0,123820.0,0.003]
[1759822457019,1.35906042,123830.0,123820.0,0.003]
[1759822457218,1.35906688,123830.0,123820.0,0.003]
[1759822461181,1.35151396,123830.0,123820.0,0.003]
[1759822461405,1.35906733,123830.0,123820.0,0.003]
[1759822464863,1.13118733,123830.0,123820.0,0.003]
[1759822465069,1.35906733,123830.0,123820.0,0.003]
[1759822465238,0.85554328,123830.0,123820.0,0.003]
[1759822465981,0.84798991,123830.0,123820.0,0.003]
[1759822466524,1.35151396,123830.0,123820.0,0.003]
[1759822466729,1.34837396,123830.0,123820.0,0.00508]
[1759822466925,1.35592706,123830.0,123820.0,0.00508]
[1759822467191,0.85538301,123830.0,123820.0,0.00508]
[1759822467398,0.85538301,123830.0,123820.0,0.003]
[1759822468206,0.93537981,123830.0,123820.0,0.003]
[1759822468550,1.43890386,123830.0,123820.0,0.003]
[1759822468755,0.85240301,123830.0,123820.0,0.00508]
[1759822469373,0.85538301,123830.0,123820.0,0.003]
[1759822469825,0.62750301,123830.0,123820.0,0.003]
[1759822470043,0.85538301,123830.0,123820.0,0.003]
[1759822473966,0.85538301,123830.0,123820.0,0.00261391]
[1759822474583,0.85538032,123830.0,123800.0,0.17269733]
[1759822474785,0.81249878,123820.0,123800.0,0.15816424]
[1759822474992,0.81249878,123820.0,123810.0,2e-08]
[1759822475401,0.81249878,123820.0,123810.0,0.00020006]
[1759822476012,0.81459878,123820.0,123810.0,0.00020006]
[1759822476190,0.81779878,123820.0,123810.0,0.00020006]
[1759822476819,0.16153784,123810.0,123800.0,0.15876315]
[1759822477000,0.16153784,123810.0,123800.0,0.15216982]
[1759822477205,0.81969878,123820.0,123800.0,0.15216982]
[1759822477502,0.81903806,123820.0,123800.0,0.14985026]
[1759822477708,0.81503806,123820.0,123800.0,0.14985026]
[1759822477918,0.002,123810.0,123800.0,0.15185026]
[1759822478148,0.003,123810.0,123800.0,0.15285026]
[1759822478428,0.001,123810.0,123800.0,0.15085026]
[1759822478904,0.81303806,123820.0,123800.0,0.14985026]
[1759822479078,0.81403806,123820.0,123800.0,0.15085026]
[1759822479655,0.81703806,123820.0,123800.0,0.15285026]
[1759822480406,0.81603806,123820.0,123800.0,0.15185026]
[1759822480553,0.81603806,123820.0,123800.0,0.15285026]
[1759822480760,0.001,123810.0,123800.0,0.15285026]
[1759822481026,0.16253784,123810.0,123800.0,0.15285026]
[1759822481234,0.16153784,123810.0,123800.0,0.15185026]
[1759822481446,0.16153784,123810.0,123800.0,0.14049453]
[1759822481787,0.82015806,123820.0,123800.0,0.14049453]
[1759822481992,0.81915806,123820.0,123800.0,0.13949453]
[1759822482203,0.16253784,123810.0,123800.0,0.13742453]
[1759822482691,0.16253784,123810.0,123800.0,0.13542453]
[1759822483114,0.16653784,123810.0,123800.0,0.13742453]
[1759822483321,0.16253784,123810.0,123800.0,0.1277712]
[1759822483539,0.81615806,123820.0,123800.0,0.1267712]
[1759822483753,0.16853784,123810.0,123800.0,0.1297712]
[1759822484192,0.16853784,123810.0,123800.0,0.1317912]
[1759822484819,0.16853784,123810.0,123800.0,0.1297712]
[1759822485281,0.17053784,123810.0,123800.0,0.12211787]
[1759822485692,0.17053784,123810.0,123800.0,0.11404033]
[1759822485934,0.17255784,123810.0,123800.0,0.11404033]
[1759822486363,0.17567784,123810.0,123800.0,0.11404033]
[1759822486770,0.17255784,123810.0,123800.0,0.11404033]
[1759822487384,0.17255784,123810.0,123800.0,0.106387]
[1759822489484,0.17255784,123810.0,123800.0,0.09873367]
[1759822491528,0.17255784,123810.0,123800.0,0.09108034]
[1759822493562,0.17255784,123810.0,123800.0,0.08342701]
[1759822495402,0.17567784,123810.0,123800.0,0.31126701]
[1759822495609,0.17567784,123810.0,123800.0,0.00324655]
[1759822495610,0.2587999,123810.0,123800.0,0.00324655]
[1759822495929,0.28304495,123810.0,123800.0,0.00324655]
[1759822496139,0.36304175,123810.0,123800.0,0.00324655]
[1759822496557,0.28304495,123810.0,123800.0,0.00324655]
[1759822497726,0.16155088,123800.0,123790.0,0.38935642]
[1759822497938,0.16155088,123800.0,123790.0,0.39149574]
[1759822498138,0.16357088,123800.0,123790.0,0.15294472]
[1759822498455,0.16357088,123800.0,123790.0,0.38078472]
[1759822499218,0.16757088,123800.0,123790.0,0.38478472]
[1759822500454,0.16757088,123800.0,123790.0,0.37713139]
[1759822501722,0.16757088,123800.0,123790.0,0.37402903]
[1759822501932,0.16757088,123800.0,123790.0,0.00340787]
[1759822501933,0.75739699,123800.0,123790.0,0.00340787]
[1759822502144,0.16157093,123790.0,123780.0,0.22784]
[1759822502372,0.16475093,123790.0,123780.0,0.22798579]
[1759822502607,0.16683093,123790.0,123780.0,0.21708792]
[1759822502837,0.19107867,123790.0,123780.0,0.21708792]
[1759822503086,0.34085989,123790.0,123780.0,0.21708792]
[1759822503536,0.34885989,123790.0,123780.0,0.00314579]
[1759822503767,0.34885989,123790.0,123780.0,0.00354599]
[1759822503768,0.28220073,123790.0,123780.0,0.00354599]
[1759822504267,0.28220073,123790.0,123780.0,0.00112785]
[1759822504432,0.28420073,123790.0,123780.0,1e-08]
[1759822504668,0.16159004,123770.0,123760.0,0.4200151]
[1759822504825,0.16159004,123770.0,123760.0,0.42014316]
[1759822505884,0.16259004,123770.0,123760.0,0.42872351]
[1759822506097,0.005,123770.0,123760.0,0.42872351]
[1759822508145,0.005,123770.0,123760.0,0.42014316]
[1759822508987,0.02925025,123770.0,123760.0,0.42014316]
[1759822510471,0.02925025,123770.0,123760.0,0.42054345]
[1759822510885,0.19084029,123770.0,123760.0,0.42054345]
[1759822514314,0.02925025,123770.0,123760.0,0.42054345]
[1759822514881,0.19084029,123770.0,123760.0,0.42054345]
[1759822515896,0.19084029,123770.0,123760.0,0.41246405]
[1759822516099,0.19292029,123770.0,123760.0,0.42016335]
[1759822517160,0.19610029,123770.0,123760.0,0.03068025]
[1759822517497,0.19610029,123770.0,123760.0,0.25856025]
[1759822517704,0.19610029,123770.0,123760.0,0.42016335]
[1759822517902,0.19610029,123770.0,123760.0,0.03068025]
[1759822518094,0.19610029,123770.0,123760.0,0.42016335]
[1759822519014,0.19110029,123770.0,123760.0,0.42016335]
[1759822519248,0.19210029,123770.0,123760.0,0.25856025]
[1759822519490,0.20310029,123770.0,123760.0,0.25856025]
[1759822519701,0.20210029,123770.0,123760.0,0.25856025]
[1759822520160,0.20410029,123770.0,123760.0,0.25856025]
[1759822520397,0.20410029,123770.0,123760.0,0.42016335]